[Event "December 19 Early 2023"]
[Site "https://www.chess.com"]
[Date "2023.12.19"]
[Round "6"]
[White "Topalov, Aleksandar"]
[Black "Souleidis, Georgios"]
[Result "0-1"]
[Board "131"]
[TimeControl "180+1"]
[WhiteFideId "925659"]
[BlackFideId "4206827"]
[WhiteElo "2151"]
[BlackElo "2401"]
[WhiteTeam "SRB"]
[BlackTeam "GRE"]
[WhiteClock "0:00:03"]
[BlackClock "0:00:02"]

1. b3 {[%clk 0:03:00]}  d5 {[%clk 0:02:51]} 2. Bb2 {[%clk 0:03:00]}  Bf5 {[%clk 0:02:51]} 3. Nf3 {[%clk 0:02:59]}  e6 {[%clk 0:02:50]} 4. g3 {[%clk 0:02:56]}  Nf6 {[%clk 0:02:47]} 5. Bg2 {[%clk 0:02:56]}  c6 {[%clk 0:02:47]} 6. O-O {[%clk 0:02:56]}  h6 {[%clk 0:02:47]} 7. d3 {[%clk 0:02:56]}  Nbd7 {[%clk 0:02:46]} 8. Nbd2 {[%clk 0:02:55]}  Bh7 {[%clk 0:02:46]} 9. a3 {[%clk 0:02:52]}  a5 {[%clk 0:02:45]} 10. c4 {[%clk 0:02:43]}  Be7 {[%clk 0:02:38]} 11. Bc3 {[%clk 0:02:43]}  O-O {[%clk 0:02:37]} 12. b4 {[%clk 0:02:43]}  axb4 {[%clk 0:02:32]} 13. axb4 {[%clk 0:02:43]}  Qb6 {[%clk 0:02:32]} 14. Qb3 {[%clk 0:02:40]}  Rfc8 {[%clk 0:02:27]} 15. Ra3 {[%clk 0:02:31]}  Rxa3 {[%clk 0:02:22]} 16. Qxa3 {[%clk 0:02:30]}  dxc4 {[%clk 0:02:09]} 17. Nxc4 {[%clk 0:02:29]}  Qc7 {[%clk 0:02:08]} 18. Qa5 {[%clk 0:02:17]}  Nd5 {[%clk 0:02:01]} 19. Bd2 {[%clk 0:02:13]}  b6 {[%clk 0:01:48]} 20. Qa3 {[%clk 0:02:00]}  c5 {[%clk 0:01:37]} 21. b5 {[%clk 0:01:56]}  Bg6 {[%clk 0:01:28]} 22. Ra1 {[%clk 0:01:37]}  Nb4 {[%clk 0:01:23]} 23. Qa7 {[%clk 0:01:31]}  Bf6 {[%clk 0:01:03]} 24. Qxc7 {[%clk 0:01:30]}  Rxc7 {[%clk 0:01:04]} 25. Ra8+ {[%clk 0:01:27]}  Kh7 {[%clk 0:01:04]} 26. Bf4 {[%clk 0:01:18]}  e5 {[%clk 0:00:49]} 27. Nfxe5 {[%clk 0:01:13]}  Nxe5 {[%clk 0:00:49]} 28. Nxe5 {[%clk 0:01:10]}  Bxe5 {[%clk 0:00:49]} 29. Bxe5 {[%clk 0:01:10]}  Re7 {[%clk 0:00:50]} 30. d4 {[%clk 0:01:02]}  f6 {[%clk 0:00:37]} 31. Bd6 {[%clk 0:00:47]}  Rxe2 {[%clk 0:00:37]} 32. Bf3 {[%clk 0:00:29]}  Re1+ {[%clk 0:00:34]} 33. Kg2 {[%clk 0:00:30]}  Bd3 {[%clk 0:00:33]} 34. g4 {[%clk 0:00:24]}  Bxb5 {[%clk 0:00:20]} 35. dxc5 {[%clk 0:00:22]}  bxc5 {[%clk 0:00:20]} 36. Bxc5 {[%clk 0:00:23]}  Bf1+ {[%clk 0:00:15]} 37. Kg3 {[%clk 0:00:22]}  Nd3 {[%clk 0:00:16]} 38. Bf8 {[%clk 0:00:19]}  g5 {[%clk 0:00:08]} 39. Ra7+ {[%clk 0:00:16]}  Kg8 {[%clk 0:00:08]} 40. Bxh6 {[%clk 0:00:16]}  Ne5 {[%clk 0:00:08]} 41. Bd5+ {[%clk 0:00:13]}  Kh8 {[%clk 0:00:06]} 42. Bg7+ {[%clk 0:00:12]}  Kh7 {[%clk 0:00:06]} 43. Bxf6+ {[%clk 0:00:12]}  Kg6 {[%clk 0:00:07]} 44. Bxe5 {[%clk 0:00:10]}  Rxe5 {[%clk 0:00:07]} 45. Rd7 {[%clk 0:00:09]}  Bb5 {[%clk 0:00:06]} 46. Rd6+ {[%clk 0:00:09]}  Kg7 {[%clk 0:00:07]} 47. f4 {[%clk 0:00:08]}  Re3+ {[%clk 0:00:06]} 48. Bf3 {[%clk 0:00:06]}  Be2 {[%clk 0:00:05]} 49. fxg5 {[%clk 0:00:04]}  Rxf3+ {[%clk 0:00:05]} 50. Kh4 {[%clk 0:00:05]}  Ra3 {[%clk 0:00:02]} 51. Rd7+ {[%clk 0:00:04]}  Kg6 {[%clk 0:00:02]} 52. Rd6+ {[%clk 0:00:04]}  Kg7 {[%clk 0:00:03]} 53. h3 {[%clk 0:00:04]}  Bf1 {[%clk 0:00:02]} 54. Rd7+ {[%clk 0:00:03]}  Kg6 {[%clk 0:00:02]} 55. Rd6+ {[%clk 0:00:03]}  Kg7 {[%clk 0:00:03]} 56. Kh5 {[%clk 0:00:03]}  Rxh3# {[%clk 0:00:02]} 0-1

[Event "December 19 Early 2023"]
[Site "https://www.chess.com"]
[Date "2023.12.19"]
[Round "6"]
[White "Hoffmann, Asa"]
[Black "Kashefi, Amir Hosein"]
[Result "0-1"]
[Board "136"]
[TimeControl "180+1"]
[WhiteFideId "2001470"]
[BlackFideId "12557935"]
[WhiteElo "2117"]
[BlackElo "2109"]
[WhiteTeam "USA"]
[BlackTeam "IRI"]
[WhiteClock "0:00:13"]
[BlackClock "0:00:55"]

1. d4 {[%clk 0:02:57]}  Nf6 {[%clk 0:02:53]} 2. Bg5 {[%clk 0:02:55]}  e6 {[%clk 0:02:54]} 3. Nd2 {[%clk 0:02:55]}  b6 {[%clk 0:02:53]} 4. f3 {[%clk 0:02:54]}  h6 {[%clk 0:02:48]} 5. Bh4 {[%clk 0:02:54]}  Be7 {[%clk 0:02:48]} 6. e4 {[%clk 0:02:54]}  c5 {[%clk 0:02:47]} 7. c3 {[%clk 0:02:54]}  O-O {[%clk 0:02:44]} 8. Bd3 {[%clk 0:02:53]}  d6 {[%clk 0:02:42]} 9. Ne2 {[%clk 0:02:53]}  Ba6 {[%clk 0:02:41]} 10. Bxa6 {[%clk 0:02:50]}  Nxa6 {[%clk 0:02:42]} 11. Qa4 {[%clk 0:02:50]}  Nc7 {[%clk 0:02:41]} 12. Rd1 {[%clk 0:02:49]}  Nd7 {[%clk 0:02:40]} 13. Bf2 {[%clk 0:02:48]}  a6 {[%clk 0:02:38]} 14. O-O {[%clk 0:02:48]}  b5 {[%clk 0:02:38]} 15. Qc2 {[%clk 0:02:47]}  d5 {[%clk 0:02:35]} 16. exd5 {[%clk 0:02:39]}  Nxd5 {[%clk 0:02:35]} 17. Ne4 {[%clk 0:02:38]}  cxd4 {[%clk 0:02:34]} 18. Nxd4 {[%clk 0:02:36]}  Rc8 {[%clk 0:02:33]} 19. Rfe1 {[%clk 0:02:22]}  N7f6 {[%clk 0:02:31]} 20. a3 {[%clk 0:02:18]}  Qc7 {[%clk 0:02:28]} 21. Bg3 {[%clk 0:02:14]}  Qa7 {[%clk 0:02:22]} 22. Qe2 {[%clk 0:02:13]}  Rfd8 {[%clk 0:02:20]} 23. Bf2 {[%clk 0:02:12]}  Nf4 {[%clk 0:02:16]} 24. Qf1 {[%clk 0:02:08]}  Qb7 {[%clk 0:02:11]} 25. g3 {[%clk 0:02:01]}  N4d5 {[%clk 0:02:03]} 26. Kg2 {[%clk 0:02:00]}  Nb6 {[%clk 0:02:02]} 27. Nd2 {[%clk 0:01:53]}  Bc5 {[%clk 0:01:58]} 28. N2b3 {[%clk 0:01:52]}  Be7 {[%clk 0:01:56]} 29. Na5 {[%clk 0:01:48]}  Qa8 {[%clk 0:01:53]} 30. Qe2 {[%clk 0:01:46]}  Na4 {[%clk 0:01:50]} 31. Nxe6 {[%clk 0:01:42]}  Rxd1 {[%clk 0:01:50]} 32. Rxd1 {[%clk 0:01:36]}  fxe6 {[%clk 0:01:50]} 33. Qxe6+ {[%clk 0:01:35]}  Kf8 {[%clk 0:01:50]} 34. Re1 {[%clk 0:01:28]}  Re8 {[%clk 0:01:50]} 35. Qf5 {[%clk 0:00:52]}  Qd5 {[%clk 0:01:45]} 36. Re5 {[%clk 0:00:48]}  Qd7 {[%clk 0:01:40]} 37. Bd4 {[%clk 0:00:44]}  Qxf5 {[%clk 0:01:38]} 38. Rxf5 {[%clk 0:00:44]}  Nxb2 {[%clk 0:01:39]} 39. Nc6 {[%clk 0:00:42]}  Nc4 {[%clk 0:01:37]} 40. Nxe7 {[%clk 0:00:42]}  Kxe7 {[%clk 0:01:37]} 41. a4 {[%clk 0:00:42]}  Rb8 {[%clk 0:01:31]} 42. axb5 {[%clk 0:00:40]}  axb5 {[%clk 0:01:32]} 43. Rc5 {[%clk 0:00:38]}  Nd7 {[%clk 0:01:28]} 44. Rc7 {[%clk 0:00:37]}  g5 {[%clk 0:01:27]} 45. h4 {[%clk 0:00:36]}  Kd6 {[%clk 0:01:26]} 46. Ra7 {[%clk 0:00:35]}  gxh4 {[%clk 0:01:22]} 47. gxh4 {[%clk 0:00:35]}  h5 {[%clk 0:01:21]} 48. Ra6+ {[%clk 0:00:33]}  Ndb6 {[%clk 0:01:19]} 49. f4 {[%clk 0:00:32]}  Kd5 {[%clk 0:01:17]} 50. Kf3 {[%clk 0:00:31]}  Nd2+ {[%clk 0:01:14]} 51. Ke2 {[%clk 0:00:29]}  Nbc4 {[%clk 0:01:14]} 52. Rh6 {[%clk 0:00:27]}  Re8+ {[%clk 0:01:13]} 53. Kd1 {[%clk 0:00:26]}  Ke4 {[%clk 0:01:12]} 54. Rxh5 {[%clk 0:00:22]}  Kd3 {[%clk 0:01:12]} 55. Re5 {[%clk 0:00:20]}  Nxe5 {[%clk 0:01:11]} 56. Bxe5 {[%clk 0:00:19]}  Ne4 {[%clk 0:01:08]} 57. h5 {[%clk 0:00:17]}  Ra8 {[%clk 0:01:07]} 58. Kc1 {[%clk 0:00:16]}  Nxc3 {[%clk 0:00:57]} 59. h6 {[%clk 0:00:15]}  Ra2 {[%clk 0:00:55]} 60. h7 {[%clk 0:00:13]}  Rc2# {[%clk 0:00:55]} 0-1

[Event "December 19 Early 2023"]
[Site "https://www.chess.com"]
[Date "2023.12.19"]
[Round "6"]
[White "Mesquita, Eduardo Barbosa"]
[Black "Herman, Matthew"]
[Result "1-0"]
[Board "139"]
[TimeControl "180+1"]
[WhiteFideId "22757163"]
[BlackFideId "2028964"]
[WhiteElo "1953"]
[BlackElo "2368"]
[WhiteTeam "BRA"]
[BlackTeam "USA"]
[WhiteClock "0:00:53"]
[BlackClock "0:00:09"]

1. e4 {[%clk 0:03:00]}  e5 {[%clk 0:02:59]} 2. Nf3 {[%clk 0:02:59]}  Nc6 {[%clk 0:03:00]} 3. Bb5 {[%clk 0:03:00]}  a6 {[%clk 0:03:00]} 4. Ba4 {[%clk 0:03:00]}  Nf6 {[%clk 0:03:00]} 5. d3 {[%clk 0:03:00]}  b5 {[%clk 0:02:59]} 6. Bb3 {[%clk 0:03:00]}  Be7 {[%clk 0:02:59]} 7. h3 {[%clk 0:02:58]}  O-O {[%clk 0:02:59]} 8. Nbd2 {[%clk 0:02:59]}  d6 {[%clk 0:02:56]} 9. c3 {[%clk 0:02:57]}  Na5 {[%clk 0:02:55]} 10. Bc2 {[%clk 0:02:57]}  c5 {[%clk 0:02:56]} 11. Qe2 {[%clk 0:02:57]}  Re8 {[%clk 0:02:56]} 12. O-O {[%clk 0:02:57]}  Bf8 {[%clk 0:02:55]} 13. Re1 {[%clk 0:02:57]}  Bb7 {[%clk 0:02:51]} 14. Nf1 {[%clk 0:02:57]}  h6 {[%clk 0:02:50]} 15. Ne3 {[%clk 0:02:58]}  d5 {[%clk 0:02:47]} 16. Nf5 {[%clk 0:02:57]}  d4 {[%clk 0:01:28]} 17. Nh2 {[%clk 0:02:39]}  c4 {[%clk 0:01:22]} 18. Rd1 {[%clk 0:02:36]}  Qc7 {[%clk 0:01:00]} 19. Ng4 {[%clk 0:02:30]}  Nxg4 {[%clk 0:00:52]} 20. Qxg4 {[%clk 0:02:30]}  Re6 {[%clk 0:00:43]} 21. cxd4 {[%clk 0:02:27]}  Rg6 {[%clk 0:00:41]} 22. Qf3 {[%clk 0:02:11]}  exd4 {[%clk 0:00:34]} 23. Bf4 {[%clk 0:02:11]}  Qb6 {[%clk 0:00:26]} 24. dxc4 {[%clk 0:02:00]}  Nxc4 {[%clk 0:00:26]} 25. Rab1 {[%clk 0:01:17]}  Bc5 {[%clk 0:00:25]} 26. Qd3 {[%clk 0:01:10]}  Rd8 {[%clk 0:00:22]} 27. b4 {[%clk 0:01:06]}  Bf8 {[%clk 0:00:20]} 28. a4 {[%clk 0:01:06]}  Qf6 {[%clk 0:00:17]} 29. e5 {[%clk 0:01:04]}  Rxg2+ {[%clk 0:00:16]} 30. Kf1 {[%clk 0:01:03]}  Qg6 {[%clk 0:00:12]} 31. Nh4 {[%clk 0:00:56]}  Rg1+ {[%clk 0:00:10]} 32. Ke2 {[%clk 0:00:56]}  Qh5+ {[%clk 0:00:10]} 33. f3 {[%clk 0:00:53]}  Rxd1 {[%clk 0:00:09]} 34. Qh7# {[%clk 0:00:53]} 1-0

[Event "December 19 Early 2023"]
[Site "https://www.chess.com"]
[Date "2023.12.19"]
[Round "6"]
[White "Sanchez Alvares, Kelvin Antonio"]
[Black "Skibbe, Willi"]
[Result "0-1"]
[Board "140"]
[TimeControl "180+1"]
[WhiteFideId "3906680"]
[BlackFideId "4682190"]
[WhiteElo "2217"]
[BlackElo "2351"]
[WhiteTeam "VEN"]
[BlackTeam "GER"]
[WhiteClock "0:00:08"]
[BlackClock "0:01:13"]

1. e4 {[%clk 0:03:00]}  e5 {[%clk 0:02:59]} 2. Nf3 {[%clk 0:02:59]}  Nc6 {[%clk 0:02:58]} 3. Bc4 {[%clk 0:02:58]}  Bc5 {[%clk 0:02:57]} 4. d3 {[%clk 0:02:57]}  Nf6 {[%clk 0:02:56]} 5. c3 {[%clk 0:02:56]}  d6 {[%clk 0:02:55]} 6. a4 {[%clk 0:02:56]}  a5 {[%clk 0:02:54]} 7. Nbd2 {[%clk 0:02:54]}  h6 {[%clk 0:02:52]} 8. O-O {[%clk 0:02:51]}  O-O {[%clk 0:02:49]} 9. h3 {[%clk 0:02:47]}  Ne7 {[%clk 0:02:49]} 10. Re1 {[%clk 0:02:46]}  Ng6 {[%clk 0:02:48]} 11. d4 {[%clk 0:02:14]}  Bb6 {[%clk 0:02:45]} 12. Nf1 {[%clk 0:02:09]}  c6 {[%clk 0:02:34]} 13. Ng3 {[%clk 0:02:02]}  exd4 {[%clk 0:02:32]} 14. cxd4 {[%clk 0:02:01]}  d5 {[%clk 0:02:32]} 15. exd5 {[%clk 0:01:34]}  Nxd5 {[%clk 0:02:30]} 16. Qb3 {[%clk 0:01:22]}  Be6 {[%clk 0:02:20]} 17. Ne4 {[%clk 0:01:06]}  Ndf4 {[%clk 0:02:01]} 18. Nc5 {[%clk 0:01:00]}  Bxc4 {[%clk 0:01:52]} 19. Qxc4 {[%clk 0:00:59]}  Qc7 {[%clk 0:01:35]} 20. Ne5 {[%clk 0:00:44]}  Rad8 {[%clk 0:01:28]} 21. h4 {[%clk 0:00:24]}  Nxe5 {[%clk 0:01:26]} 22. Rxe5 {[%clk 0:00:22]}  Bxc5 {[%clk 0:01:15]} 23. Bxf4 {[%clk 0:00:16]}  Bd6 {[%clk 0:01:15]} 24. Re4 {[%clk 0:00:11]}  Bxf4 {[%clk 0:01:13]} 25. Rae1 {[%clk 0:00:08]}  Bh2+ {[%clk 0:01:13]} 0-1

[Event "December 19 Early 2023"]
[Site "https://www.chess.com"]
[Date "2023.12.19"]
[Round "6"]
[White "Senft, Sean"]
[Black "Gruzman, Ilya"]
[Result "1-0"]
[Board "141"]
[TimeControl "180+1"]
[WhiteFideId "2044960"]
[BlackFideId "2812703"]
[WhiteElo "2005"]
[BlackElo "1986"]
[WhiteTeam "USA"]
[BlackTeam "ISR"]
[WhiteClock "0:02:08"]
[BlackClock "0:01:37"]

1. d4 {[%clk 0:02:59]}  g6 {[%clk 0:02:56]} 2. c4 {[%clk 0:02:59]}  Bg7 {[%clk 0:02:55]} 3. Nc3 {[%clk 0:03:00]}  c5 {[%clk 0:02:55]} 4. d5 {[%clk 0:03:01]}  Bxc3+ {[%clk 0:02:54]} 5. bxc3 {[%clk 0:03:01]}  f5 {[%clk 0:02:55]} 6. e4 {[%clk 0:03:02]}  fxe4 {[%clk 0:02:55]} 7. f3 {[%clk 0:03:03]}  Nf6 {[%clk 0:02:52]} 8. fxe4 {[%clk 0:02:57]}  Nxe4 {[%clk 0:02:53]} 9. Bd3 {[%clk 0:02:54]}  Nf6 {[%clk 0:02:53]} 10. Nf3 {[%clk 0:02:54]}  d6 {[%clk 0:02:53]} 11. O-O {[%clk 0:02:54]}  O-O {[%clk 0:02:52]} 12. Bh6 {[%clk 0:02:54]}  Re8 {[%clk 0:02:52]} 13. Qc2 {[%clk 0:02:43]}  Bg4 {[%clk 0:02:06]} 14. Bxg6 {[%clk 0:02:41]}  Bxf3 {[%clk 0:02:06]} 15. Rxf3 {[%clk 0:02:35]}  Kh8 {[%clk 0:02:04]} 16. Bxh7 {[%clk 0:02:09]}  Nxh7 {[%clk 0:01:47]} 17. Rf7 {[%clk 0:02:08]}  Nf6 {[%clk 0:01:37]} 18. Qg6 {[%clk 0:02:08]} 1-0

[Event "December 19 Early 2023"]
[Site "https://www.chess.com"]
[Date "2023.12.19"]
[Round "6"]
[White "Tabuenca Mendataurigoitia, Daniel"]
[Black "Recuero Guerra, Javier"]
[Result "1-0"]
[Board "142"]
[TimeControl "180+1"]
[WhiteFideId "24563617"]
[BlackFideId "2254085"]
[WhiteElo "2130"]
[BlackElo "2208"]
[WhiteTeam "ESP"]
[BlackTeam "ESP"]
[WhiteClock "0:00:22"]
[BlackClock "0:00:00"]

1. Nf3 {[%clk 0:03:00]}  Nf6 {[%clk 0:02:55]} 2. g3 {[%clk 0:03:00]}  b6 {[%clk 0:02:43]} 3. Bg2 {[%clk 0:03:00]}  Bb7 {[%clk 0:02:43]} 4. O-O {[%clk 0:02:59]}  e6 {[%clk 0:02:42]} 5. c4 {[%clk 0:02:58]}  Be7 {[%clk 0:02:39]} 6. d3 {[%clk 0:02:51]}  O-O {[%clk 0:02:37]} 7. b3 {[%clk 0:02:48]}  c5 {[%clk 0:02:20]} 8. e4 {[%clk 0:02:45]}  d6 {[%clk 0:02:00]} 9. Nc3 {[%clk 0:02:40]}  Nc6 {[%clk 0:01:59]} 10. Be3 {[%clk 0:02:35]}  e5 {[%clk 0:01:54]} 11. h3 {[%clk 0:02:31]}  Nd4 {[%clk 0:01:51]} 12. Nd5 {[%clk 0:02:31]}  Nxd5 {[%clk 0:01:36]} 13. cxd5 {[%clk 0:02:29]}  f5 {[%clk 0:01:31]} 14. Bxd4 {[%clk 0:02:21]}  cxd4 {[%clk 0:01:22]} 15. Rc1 {[%clk 0:02:21]}  Qd7 {[%clk 0:01:11]} 16. h4 {[%clk 0:02:09]}  Rac8 {[%clk 0:00:32]} 17. Qd2 {[%clk 0:02:01]}  f4 {[%clk 0:00:26]} 18. Kh2 {[%clk 0:01:54]}  Rxc1 {[%clk 0:00:25]} 19. Rxc1 {[%clk 0:01:53]}  Bc8 {[%clk 0:00:20]} 20. Ng1 {[%clk 0:01:35]}  Rd8 {[%clk 0:00:19]} 21. Bh3 {[%clk 0:01:28]}  Qe8 {[%clk 0:00:18]} 22. Rc7 {[%clk 0:01:17]}  Bxh3 {[%clk 0:00:18]} 23. Nxh3 {[%clk 0:01:17]}  Rd7 {[%clk 0:00:16]} 24. Rc6 {[%clk 0:01:12]}  Qh5 {[%clk 0:00:11]} 25. Kg2 {[%clk 0:01:05]}  f3+ {[%clk 0:00:05]} 26. Kh2 {[%clk 0:01:01]}  Qg4 {[%clk 0:00:05]} 27. b4 {[%clk 0:00:50]}  h6 {[%clk 0:00:05]} 28. Ng1 {[%clk 0:00:42]}  Bxh4 {[%clk 0:00:03]} 29. Qd1 {[%clk 0:00:40]}  Be7 {[%clk 0:00:02]} 30. Qxf3 {[%clk 0:00:39]}  Qxf3 {[%clk 0:00:02]} 31. Nxf3 {[%clk 0:00:39]}  g5 {[%clk 0:00:03]} 32. g4 {[%clk 0:00:33]}  Kf7 {[%clk 0:00:03]} 33. b5 {[%clk 0:00:32]}  Ke8 {[%clk 0:00:03]} 34. Ng1 {[%clk 0:00:26]}  Kd8 {[%clk 0:00:03]} 35. Ne2 {[%clk 0:00:26]}  Rc7 {[%clk 0:00:03]} 36. Ng3 {[%clk 0:00:26]}  Rxc6 {[%clk 0:00:01]} 37. dxc6 {[%clk 0:00:26]}  Bf8 {[%clk 0:00:02]} 38. Nf5 {[%clk 0:00:24]}  Kc7 {[%clk 0:00:03]} 39. Kg2 {[%clk 0:00:23]}  a6 {[%clk 0:00:03]} 40. a4 {[%clk 0:00:23]}  axb5 {[%clk 0:00:02]} 41. axb5 {[%clk 0:00:24]}  Kd8 {[%clk 0:00:02]} 42. Kf1 {[%clk 0:00:24]}  Kc7 {[%clk 0:00:02]} 43. Ke2 {[%clk 0:00:24]}  Kd8 {[%clk 0:00:01]} 44. Kd1 {[%clk 0:00:25]}  Kc7 {[%clk 0:00:02]} 45. Kc2 {[%clk 0:00:26]}  d5 {[%clk 0:00:02]} 46. exd5 {[%clk 0:00:24]}  Bc5 {[%clk 0:00:01]} 47. Kd1 {[%clk 0:00:21]}  Bb4 {[%clk 0:00:01]} 48. Ke2 {[%clk 0:00:22]}  Bc5 {[%clk 0:00:01]} 49. Kf3 {[%clk 0:00:22]}  Bf8 {[%clk 0:00:02]} 50. Ke4 {[%clk 0:00:22]}  Bd6 {[%clk 0:00:00]} 51. Nxh6 {[%clk 0:00:22]} 1-0

[Event "December 19 Early 2023"]
[Site "https://www.chess.com"]
[Date "2023.12.19"]
[Round "6"]
[White "Kostiukov, Alexandr"]
[Black "Kanyamarala, Tarun"]
[Result "1-0"]
[Board "143"]
[TimeControl "180+1"]
[WhiteFideId "14108100"]
[BlackFideId "45004714"]
[WhiteElo "2112"]
[BlackElo "2318"]
[WhiteTeam "UKR"]
[BlackTeam "IRL"]
[WhiteClock "0:01:39"]
[BlackClock "0:01:37"]

1. g3 {[%clk 0:02:58]}  d5 {[%clk 0:02:59]} 2. Bg2 {[%clk 0:02:58]}  e5 {[%clk 0:02:53]} 3. c4 {[%clk 0:02:57]}  dxc4 {[%clk 0:02:50]} 4. Qa4+ {[%clk 0:02:56]}  c6 {[%clk 0:02:48]} 5. Qxc4 {[%clk 0:02:56]}  Be6 {[%clk 0:02:47]} 6. Qc2 {[%clk 0:02:55]}  Nf6 {[%clk 0:02:43]} 7. Nf3 {[%clk 0:02:56]}  Nbd7 {[%clk 0:02:34]} 8. d4 {[%clk 0:02:49]}  Bd5 {[%clk 0:02:28]} 9. dxe5 {[%clk 0:02:26]}  Nxe5 {[%clk 0:02:26]} 10. O-O {[%clk 0:02:15]}  Nxf3+ {[%clk 0:02:21]} 11. exf3 {[%clk 0:02:14]}  Be7 {[%clk 0:02:16]} 12. Nc3 {[%clk 0:02:08]}  Be6 {[%clk 0:02:15]} 13. Be3 {[%clk 0:01:56]}  O-O {[%clk 0:02:10]} 14. Rfd1 {[%clk 0:01:55]}  Qc8 {[%clk 0:02:10]} 15. Ne4 {[%clk 0:01:50]}  Bf5 {[%clk 0:02:01]} 16. Bc5 {[%clk 0:01:43]}  Qc7 {[%clk 0:01:37]} 17. Nxf6+ {[%clk 0:01:39]} 1-0

[Event "December 19 Early 2023"]
[Site "https://www.chess.com"]
[Date "2023.12.19"]
[Round "6"]
[White "Buscar, Michael"]
[Black "Reprintsev, Alexander"]
[Result "0-1"]
[Board "147"]
[TimeControl "180+1"]
[WhiteFideId "2603616"]
[BlackFideId "14100541"]
[WhiteElo "2010"]
[BlackElo "2229"]
[WhiteTeam "CAN"]
[BlackTeam "UKR"]
[WhiteClock "0:01:58"]
[BlackClock "0:02:10"]

1. d4 {[%clk 0:03:00]}  d5 {[%clk 0:03:00]} 2. c4 {[%clk 0:03:00]}  e5 {[%clk 0:03:00]} 3. cxd5 {[%clk 0:02:59]}  Qxd5 {[%clk 0:02:59]} 4. dxe5 {[%clk 0:02:53]}  Qxd1+ {[%clk 0:02:59]} 5. Kxd1 {[%clk 0:02:53]}  Nc6 {[%clk 0:02:59]} 6. Nf3 {[%clk 0:02:53]}  Bg4 {[%clk 0:02:58]} 7. Bf4 {[%clk 0:02:50]}  O-O-O+ {[%clk 0:02:57]} 8. Kc1 {[%clk 0:02:50]}  Nge7 {[%clk 0:02:54]} 9. h3 {[%clk 0:02:47]}  Bxf3 {[%clk 0:02:51]} 10. exf3 {[%clk 0:02:44]}  Ng6 {[%clk 0:02:51]} 11. Bg5 {[%clk 0:02:40]}  Rd5 {[%clk 0:02:48]} 12. f4 {[%clk 0:02:35]}  h6 {[%clk 0:02:48]} 13. f5 {[%clk 0:02:31]}  Ngxe5 {[%clk 0:02:35]} 14. Be3 {[%clk 0:02:29]}  Bb4 {[%clk 0:02:23]} 15. Nc3 {[%clk 0:02:26]}  Bxc3 {[%clk 0:02:23]} 16. bxc3 {[%clk 0:02:26]}  Rhd8 {[%clk 0:02:20]} 17. Be2 {[%clk 0:02:22]}  Nd3+ {[%clk 0:02:20]} 18. Kb1 {[%clk 0:02:13]}  Rb5+ {[%clk 0:02:10]} 19. Kc2 {[%clk 0:01:58]}  Rb2+ {[%clk 0:02:10]} 0-1

[Event "December 19 Early 2023"]
[Site "https://www.chess.com"]
[Date "2023.12.19"]
[Round "6"]
[White "Rushbrooke, Remy"]
[Black "Hnydiuk, Aleksander"]
[Result "0-1"]
[Board "149"]
[TimeControl "180+1"]
[WhiteFideId "443590"]
[BlackFideId "1109057"]
[WhiteElo "1942"]
[BlackElo "2374"]
[WhiteTeam "ENG"]
[BlackTeam "POL"]
[WhiteClock "0:00:14"]
[BlackClock "0:00:16"]

1. Nf3 {[%clk 0:02:57]}  Nf6 {[%clk 0:02:59]} 2. g3 {[%clk 0:02:56]}  g6 {[%clk 0:02:59]} 3. Bg2 {[%clk 0:02:57]}  Bg7 {[%clk 0:03:00]} 4. d4 {[%clk 0:02:58]}  O-O {[%clk 0:03:01]} 5. c4 {[%clk 0:02:58]}  c5 {[%clk 0:02:59]} 6. Nc3 {[%clk 0:02:52]}  cxd4 {[%clk 0:02:53]} 7. Nxd4 {[%clk 0:02:52]}  Nc6 {[%clk 0:02:52]} 8. O-O {[%clk 0:02:52]}  Qa5 {[%clk 0:02:52]} 9. Nb3 {[%clk 0:02:47]}  Qh5 {[%clk 0:02:52]} 10. e4 {[%clk 0:02:45]}  d6 {[%clk 0:02:52]} 11. Qxh5 {[%clk 0:02:44]}  Nxh5 {[%clk 0:02:51]} 12. Nd5 {[%clk 0:02:39]}  a5 {[%clk 0:02:50]} 13. Nd2 {[%clk 0:02:35]}  a4 {[%clk 0:02:46]} 14. Rb1 {[%clk 0:02:35]}  Nf6 {[%clk 0:02:39]} 15. Rd1 {[%clk 0:02:16]}  Nxd5 {[%clk 0:02:36]} 16. cxd5 {[%clk 0:02:16]}  Nb4 {[%clk 0:02:36]} 17. a3 {[%clk 0:02:14]}  Nc2 {[%clk 0:02:28]} 18. Nc4 {[%clk 0:02:10]}  b5 {[%clk 0:02:21]} 19. Nb6 {[%clk 0:02:10]}  Rb8 {[%clk 0:02:20]} 20. Nxc8 {[%clk 0:02:08]}  Rfxc8 {[%clk 0:02:21]} 21. Bg5 {[%clk 0:02:06]}  Kf8 {[%clk 0:02:16]} 22. Bf1 {[%clk 0:02:04]}  b4 {[%clk 0:02:12]} 23. Bd3 {[%clk 0:01:29]}  bxa3 {[%clk 0:01:38]} 24. Bxc2 {[%clk 0:01:28]}  a2 {[%clk 0:01:26]} 25. Ra1 {[%clk 0:01:28]}  Rxc2 {[%clk 0:01:23]} 26. Rxa2 {[%clk 0:01:28]}  Rb4 {[%clk 0:01:07]} 27. Rd2 {[%clk 0:00:56]}  Rcxb2 {[%clk 0:00:48]} 28. Rdxb2 {[%clk 0:00:55]}  Bxb2 {[%clk 0:00:43]} 29. Bd2 {[%clk 0:00:55]}  Rb3 {[%clk 0:00:38]} 30. Rxa4 {[%clk 0:00:55]}  Kg7 {[%clk 0:00:36]} 31. Ra2 {[%clk 0:00:53]}  f6 {[%clk 0:00:35]} 32. Ra7 {[%clk 0:00:51]}  Kf7 {[%clk 0:00:34]} 33. Kg2 {[%clk 0:00:51]}  Bd4 {[%clk 0:00:33]} 34. Ra2 {[%clk 0:00:48]}  f5 {[%clk 0:00:33]} 35. exf5 {[%clk 0:00:45]}  gxf5 {[%clk 0:00:34]} 36. Bg5 {[%clk 0:00:45]}  Rb5 {[%clk 0:00:31]} 37. Re2 {[%clk 0:00:33]}  Be5 {[%clk 0:00:26]} 38. f4 {[%clk 0:00:29]}  Bf6 {[%clk 0:00:26]} 39. Bxf6 {[%clk 0:00:27]}  Kxf6 {[%clk 0:00:27]} 40. Rd2 {[%clk 0:00:28]}  Rb3 {[%clk 0:00:26]} 41. Kf2 {[%clk 0:00:27]}  h5 {[%clk 0:00:26]} 42. Kg2 {[%clk 0:00:27]}  h4 {[%clk 0:00:26]} 43. gxh4 {[%clk 0:00:27]}  Re3 {[%clk 0:00:22]} 44. Kf2 {[%clk 0:00:25]}  Rh3 {[%clk 0:00:21]} 45. Kg2 {[%clk 0:00:22]}  Rxh4 {[%clk 0:00:22]} 46. Kg3 {[%clk 0:00:22]}  Rg4+ {[%clk 0:00:22]} 47. Kf3 {[%clk 0:00:23]}  Rg1 {[%clk 0:00:21]} 48. Rg2 {[%clk 0:00:20]}  Rd1 {[%clk 0:00:16]} 49. h4 {[%clk 0:00:20]}  Rxd5 {[%clk 0:00:14]} 50. Rh2 {[%clk 0:00:17]}  Rd3+ {[%clk 0:00:14]} 51. Ke2 {[%clk 0:00:16]}  Rb3 {[%clk 0:00:14]} 52. Ke1 {[%clk 0:00:15]}  Rb1+ {[%clk 0:00:14]} 53. Kf2 {[%clk 0:00:15]}  Rb2+ {[%clk 0:00:14]} 54. Kg3 {[%clk 0:00:15]}  Rxh2 {[%clk 0:00:14]} 55. Kxh2 {[%clk 0:00:15]}  Kg6 {[%clk 0:00:15]} 56. Kg3 {[%clk 0:00:16]}  Kh5 {[%clk 0:00:16]} 57. Kh3 {[%clk 0:00:14]}  e5 {[%clk 0:00:16]} 0-1